bitfinex/quotes_SOLUSD_20211001
["timestamp","ask_amount","ask_price","bid_price","bid_amount"]
[1633108713877,2.69088,157.67,157.53,2.67]
[1633108714479,0.02088,157.66,157.54,29.81002516]
[1633108714679,15.89658,157.66,157.54,29.81002516]
[1633108714878,21.28713079,157.65,157.54,29.81002516]
[1633108715078,15.8757,157.66,157.54,29.81002516]
[1633108715278,2.69088,157.67,157.54,29.81002516]
[1633108715479,0.02088,157.67,157.55,2.67]
[1633108715683,0.02088,157.68,157.55,2.67]
[1633108716481,29.59447373,157.69,157.55,2.67]
[1633108717084,2.67,157.69,157.55,2.67]
[1633108717880,2.67,157.69,157.56,7.36097033]
[1633108718081,2.67,157.69,157.57,22.7261046]
[1633108718281,25.86618036,157.69,157.57,22.7261046]
[1633108718883,25.86618036,157.69,157.57,46.2151046]
[1633108719682,25.86618036,157.69,157.58,7.36063494]
[1633108724283,15.8741,157.68,157.58,7.36063494]
[1633108724483,2.67,157.67,157.58,7.36063494]
[1633108724690,21.36416153,157.66,157.58,7.36063494]
[1633108725883,2.67,157.67,157.57,22.7261046]
[1633108726084,2.67,157.67,157.58,7.36225943]
[1633108729184,2.67,157.67,157.55,3.51182172]
[1633108730187,2.67,157.67,157.55,25.09591304]
[1633108730387,2.67,157.67,157.56,7.3628767]
[1633108730787,2.67,157.67,157.55,25.09591304]
[1633108731187,2.67,157.67,157.56,7.36274077]
[1633108733692,2.67,157.67,157.55,25.09591304]
[1633108733893,2.67,157.67,157.56,7.36266189]
[1633108735111,2.67,157.67,157.56,10.87874829]
[1633108735707,2.67,157.67,157.56,7.36266189]
[1633108735907,2.67,157.67,157.56,10.88818829]
[1633108736108,34.59054458,157.67,157.56,7.36266189]
[1633108736310,60.11498397,157.67,157.53,3.5561403]
[1633108736510,2.47198836,157.61,157.51,3.58563302]
[1633108736711,2.47198836,157.61,157.47,25.35747851]
[1633108736712,2.67,157.6,157.5,3.59359256]
[1633108736911,2.67,157.6,157.51,3.59009063]
[1633108737111,25.10003621,157.59,157.52,22.09949508]
[1633108737311,2.67,157.58,157.52,22.09949508]
[1633108737514,2.67,157.58,157.53,7.36445905]
[1633108738211,2.67,157.58,157.52,22.09949508]
[1633108738412,2.67,157.58,157.51,3.55158581]
[1633108738612,2.67,157.58,157.49,3.5784776]
[1633108738813,18.5537,157.58,157.51,3.57243721]
[1633108739012,18.5537,157.58,157.5,3.58374652]
[1633108739414,18.5537,157.58,157.51,27.69139741]
[1633108739613,18.5537,157.58,157.51,24.11702113]
[1633108745820,2.67,157.58,157.51,24.11702113]
[1633108746220,5.23164728,157.58,157.51,24.11702113]
[1633108746620,5.23164728,157.58,157.46,3.57845326]
[1633108747019,2.67,157.58,157.45,3.58834956]
[1633108747219,2.67,157.58,157.46,3.58263011]
[1633108747419,2.67,157.58,157.45,3.58363759]
[1633108747621,32.80948291,157.58,157.47,24.08547496]
[1633108748420,2.41719128,157.57,157.47,24.08547496]
[1633108748619,15.8873,157.55,157.47,24.08547496]
[1633108748820,18.5573,157.55,157.47,24.08547496]
[1633108750426,41.61382985,157.55,157.43,472.2420006]
[1633108750624,63.85882985,157.55,157.43,469.5720006]
[1633108750823,63.85882985,157.55,157.39,2.67]
[1633108750824,95.77937443,157.55,157.39,3.55715672]
[1633108751024,74.4457,157.54,157.39,3.55715672]
[1633108751224,2.67,157.53,157.37,3.56446498]
[1633108751424,28.48878733,157.52,157.38,24.62019622]
[1633108751624,2.67,157.51,157.39,7.36877038]
[1633108752224,22.22,157.51,157.39,7.36877038]
[1633108752425,15.8943,157.48,157.39,7.36877038]
[1633108752625,27.37722543,157.47,157.38,24.62019622]
[1633108752826,42.40022543,157.47,157.38,24.62019622]
[1633108753226,42.40022543,157.47,157.35,3.60602424]
[1633108753426,42.40022543,157.47,157.35,463.92180719]
[1633108753626,15.8986,157.44,157.32,3.6280769]
[1633108753828,2.67,157.43,157.32,3.6280769]
[1633108754227,2.67,157.43,157.33,26.69593411]
[1633108754426,2.67,157.43,157.34,7.37114778]
[1633108754626,2.67,157.43,157.33,26.69593411]
[1633108755828,2.67,157.46,157.33,29.36593411]
[1633108756028,2.67,157.46,157.34,7.36958843]
[1633108756229,2.67,157.51,157.35,6.15214693]
[1633108756431,2.67,157.51,157.36,40.64394859]
[1633108756629,2.67,157.51,157.37,10.03803839]
[1633108756830,2.67,157.51,157.38,7.36779113]
[1633108757031,2.67,157.51,157.39,24.42451979]
[1633108757432,26.32849186,157.51,157.39,24.42451979]
[1633108760836,51.85293125,157.51,157.39,24.42451979]
[1633108762738,2.57299525,157.49,157.37,338.21220813]
[1633108762938,2.67,157.48,157.37,338.21220813]
[1633108763138,2.67,157.48,157.31,3.63281264]
[1633108763537,28.19443939,157.48,157.31,3.63281264]
[1633108763743,28.20701068,157.47,157.32,28.54655393]
[1633108763942,2.67,157.46,157.33,7.37014388]
[1633108764139,2.50727647,157.44,157.33,7.37014388]
[1633108764340,2.67,157.43,157.29,11.03468072]
[1633108764540,25.946,157.43,157.28,3.67800125]
[1633108764738,43.97784514,157.42,157.27,3.67985666]
[1633108764941,2.67,157.41,157.26,3.6801136]
[1633108765140,36.33906535,157.41,157.27,21.74495865]
[1633108765339,3.32444741,157.4,157.27,21.74495865]
[1633108765538,2.67,157.39,157.27,21.74495865]
[1633108765738,21.97478869,157.38,157.27,21.74495865]
[1633108765942,2.67,157.37,157.27,21.74495865]
[1633108767141,15.9063,157.36,157.27,21.74495865]
[1633108767342,2.67,157.35,157.27,21.74495865]
[1633108767541,2.67,157.34,157.27,21.74495865]
[1633108775348,2.67,157.34,157.28,7.37253497]
[1633108776347,2.67,157.34,157.28,11.05199928]
[1633108777349,2.67,157.34,157.29,3.67987627]
[1633108777750,2.67,157.34,157.28,11.05240555]
[1633108778354,2.67,157.34,157.29,3.68032688]
[1633108778854,2.67,157.34,157.3,30.07732734]
[1633108779453,2.67,157.34,157.31,7.3724988]
[1633108780054,2.67,157.34,157.31,6.8724988]
[1633108783857,2.67,157.38,157.32,3.68071062]
[1633108784062,2.67,157.42,157.35,3.67995161]
[1633108784259,2.67,157.44,157.35,3.67995161]
[1633108784459,2.67,157.47,157.38,3.66013868]
[1633108784661,24.22378102,157.46,157.38,3.66013868]
[1633108784859,2.67,157.45,157.37,28.3897898]
[1633108785658,2.67,157.45,157.37,32.05888663]
[1633108786261,2.67,157.45,157.38,3.67841185]
[1633108787662,2.67,157.45,157.37,32.0696272]
[1633108790362,2.67,157.45,157.38,3.68043349]
[1633108790564,54.05053953,157.52,157.39,3.68015974]
[1633108790763,2.67,157.51,157.4,3.67994663]
[1633108790964,2.67,157.51,157.41,3.67883492]
[1633108791163,2.67,157.51,157.42,21.77130023]
[1633108791563,2.67,157.51,157.43,3.64986961]
[1633108793166,2.67,157.51,157.42,25.42051797]
[1633108793469,2.67,157.51,157.42,21.77130023]
[1633108795071,2.67,157.51,157.39,3.67843934]
[1633108795271,23.102,157.51,157.37,3.66050161]
[1633108795673,23.102,157.51,157.38,3.64212394]
[1633108796073,23.102,157.51,157.39,24.08415902]
[1633108796471,2.67,157.51,157.39,24.08415902]
[1633108796673,2.67,157.51,157.39,27.73110573]
[1633108798075,2.67,157.51,157.4,0.02088]
[1633108799077,2.67,157.51,157.39,27.73110573]
[1633108799277,2.67,157.51,157.4,3.61618965]
[1633108800276,27.75975028,157.51,157.4,3.61618965]
[1633108800677,2.67,157.51,157.4,3.61618965]
[1633108801479,2.67,157.51,157.41,3.57273351]
[1633108801678,2.67,157.51,157.42,29.82125895]
[1633108803779,21.70613628,157.5,157.42,29.82125895]
[1633108803978,24.37613628,157.5,157.42,29.82125895]
[1633108804779,2.67,157.5,157.42,29.82125895]
[1633108807383,26.78847116,157.5,157.42,29.82125895]
[1633108808583,2.67,157.5,157.42,29.82125895]
[1633108810385,2.67,157.5,157.42,33.38717401]
[1633108810987,2.67,157.5,157.43,3.67763805]
[1633108811185,2.67,157.5,157.44,3.67794185]
[1633108811386,2.67,157.5,157.45,24.29290201]
[1633108812389,2.67,157.5,157.45,27.97128691]
[1633108812587,2.67,157.5,157.45,24.29290201]
[1633108813387,2.67,157.5,157.45,27.97251321]
[1633108815388,2.67,157.5,157.46,3.68069117]
[1633108817595,2.67,157.5,157.46,3.19619433]
[1633108819493,2.67,157.5,157.45,24.29290201]
[1633108823000,2.67,157.5,157.43,0.00201357]
[1633108823200,2.67,157.5,157.42,483.98791352]
[1633108823201,2.42916351,157.49,157.42,483.98791352]
[1633108823399,2.67,157.48,157.36,0.02088]
[1633108823800,49.68437755,157.48,157.36,0.02088]
[1633108824003,40.04694114,157.47,157.36,0.02088]
[1633108824215,2.67,157.46,157.33,28.74083606]
[1633108824413,72.57337755,157.46,157.33,28.74083606]
[1633108824614,144.88987755,157.46,157.26,9.20715417]
[1633108824818,18.13804038,157.45,157.26,9.20715417]
[1633108825016,2.67,157.44,157.26,9.20715417]
[1633108825216,2.67,157.44,157.27,2.67]
[1633108825418,2.67,157.44,157.27,25.44918118]
[1633108825620,2.67,157.44,157.28,109.97378874]
[1633108825817,2.67,157.44,157.29,76.00058]
[1633108826017,2.67,157.47,157.3,97.64864262]
[1633108826221,75.2008,157.59,157.33,9.20259868]
[1633108826417,2.69088,157.58,157.34,2.69088]
[1633108826619,29.99920828,157.58,157.35,0.02088]
[1633108826820,27.30832828,157.57,157.36,2.67]
[1633108827019,23.97662558,157.56,157.37,29.92675482]
[1633108827218,23.97662558,157.56,157.38,11.86125427]
[1633108827420,51.28495386,157.56,157.38,11.86125427]
[1633108827818,51.28495386,157.56,157.39,76.0986]
[1633108828018,51.28495386,157.56,157.4,38.67774643]
[1633108828221,51.28495386,157.56,157.4,26.81622201]
[1633108828819,51.28495386,157.56,157.41,0.02088]
[1633108829221,51.28495386,157.56,157.4,26.81622201]
[1633108830921,51.28495386,157.56,157.41,11.86106047]
[1633108836229,29.97832828,157.56,157.41,11.86106047]
[1633108836429,2.67,157.56,157.41,14.53106047]
[1633108837031,2.67,157.56,157.42,0.02088]
[1633108837430,2.67,157.56,157.42,11.8788462]
[1633108838029,2.67,157.56,157.43,2.67]
[1633108838633,2.67,157.56,157.44,27.64778929]
[1633108838831,2.67,157.56,157.45,11.85576185]
[1633108839933,2.67,157.59,157.45,14.52576185]
[1633108840534,2.67,157.59,157.45,92.66446185]
[1633108840734,28.89370584,157.59,157.46,11.85346976]
[1633108840935,28.89370584,157.59,157.47,24.77181693]
[1633108841535,2.67,157.59,157.47,24.77181693]
[1633108842737,2.67,157.59,157.48,12.1091368]
[1633108843338,2.67,157.62,157.48,14.7791368]
[1633108843536,2.67,157.62,157.49,79.308]
[1633108844339,2.67,157.62,157.5,399.94003625]
[1633108844538,2.67,157.62,157.5,402.61003625]
[1633108844939,2.67,157.66,157.51,11.9591812]
[1633108845137,2.67,157.69,157.52,2.67]
[1633108845536,2.67,157.69,157.52,2.69088]
[1633108845736,24.9377729,157.68,157.53,26.565765]
[1633108845939,27.6077729,157.68,157.54,2.67]
[1633108846339,0.02088,157.67,157.54,2.67]
[1633108846537,2.67,157.66,157.54,2.67]
[1633108846737,24.58264636,157.65,157.54,2.67]
[1633108855650,2.67,157.66,157.54,2.67]
[1633108858651,28.73945918,157.65,157.54,2.67]
[1633108859952,47.91845918,157.65,157.54,2.67]
[1633108860152,47.91845918,157.65,157.53,26.565765]
[1633108860153,2.67,157.64,157.53,26.565765]
[1633108864658,2.67,157.64,157.52,2.67]
[1633108864855,27.17537787,157.64,157.5,370.91113809]
[1633108865255,27.19625787,157.64,157.5,370.91113809]
[1633108865657,27.19625787,157.64,157.46,25.55289781]
[1633108866257,2.41617437,157.59,157.46,25.55289781]
[1633108866457,32.94310943,157.58,157.46,25.55289781]
[1633108867262,32.94310943,157.58,157.45,2.67]
[1633108867460,32.94310943,157.58,157.42,2.67]
[1633108868463,32.94310943,157.58,157.43,24.57818661]
[1633108868861,77.1896,157.57,157.43,24.57818661]
[1633108869060,2.67,157.56,157.43,24.57818661]
[1633108869260,28.96219813,157.55,157.43,24.57818661]
[1633108869460,2.67,157.54,157.43,24.57818661]
[1633108870262,2.67,157.54,157.44,7.3652017]
[1633108872261,2.67,157.54,157.43,24.57818661]
[1633108872661,2.67,157.54,157.43,567.88041855]
[1633108874865,2.67,157.54,157.43,543.30223194]
[1633108875867,2.67,157.54,157.43,567.16169167]
[1633108877069,2.67,157.54,157.44,78.6904]
[1633108877266,2.67,157.54,157.45,7.36398334]
[1633108877466,2.67,157.54,157.44,7.36407988]
[1633108879668,24.9466962,157.53,157.43,567.16169167]
[1633108880470,2.67,157.52,157.43,567.16169167]
[1633108881070,2.67,157.52,157.43,543.30223194]
[1633108881471,2.47522545,157.51,157.43,543.30223194]
[1633108881671,2.67,157.5,157.43,543.30223194]
[1633108881875,17.853,157.5,157.3,2.67]
[1633108882071,24.08183713,157.49,157.31,32.09631763]
[1633108882270,24.08183713,157.49,157.32,7.36927603]
[1633108882271,2.67,157.48,157.32,7.36927603]
[1633108882873,2.69088,157.48,157.32,7.36927603]
[1633108883072,2.69088,157.48,157.31,24.72709889]
[1633108883873,2.51217325,157.45,157.31,24.72709889]
[1633108884072,25.39144507,157.44,157.31,24.72709889]
[1633108892578,25.39144507,157.44,157.29,367.0788717]
[1633108899185,25.39144507,157.44,157.3,0.02088]
[1633108899386,25.39144507,157.44,157.3,2.69088]
[1633108899586,25.39144507,157.44,157.31,26.6812311]
[1633108899787,25.39144507,157.44,157.32,0.02088]
[1633108903390,25.39144507,157.44,157.32,7.39225126]
[1633108903588,25.39144507,157.44,157.33,0.02088]
[1633108904787,2.67,157.44,157.33,0.02088]
[1633108905788,2.67,157.44,157.34,26.57930034]
[1633108905994,2.67,157.44,157.35,7.37001686]
[1633108906992,22.9015083,157.43,157.35,7.37001686]
[1633108907792,22.9015083,157.43,157.35,11.05027371]
[1633108907992,22.9015083,157.43,157.35,7.37001686]
[1633108908193,22.9015083,157.43,157.34,30.2596553]
[1633108908394,22.9015083,157.43,157.35,7.37048999]
[1633108908792,22.9015083,157.43,157.33,3.70163801]
[1633108908993,22.9015083,157.43,157.33,0.02088]
[1633108909195,22.9015083,157.43,157.33,3.68271644]
[1633108909392,22.9015083,157.43,157.33,3.70359644]
[1633108909792,22.9015083,157.43,157.34,27.29039216]
[1633108910596,22.9015083,157.43,157.35,7.37158795]
[1633108911497,22.9015083,157.43,157.35,11.05513381]
[1633108913200,2.67,157.44,157.35,11.05513381]
[1633108913401,2.67,157.44,157.36,3.68342249]
[1633108914000,2.67,157.44,157.37,3.68330238]
[1633108914199,2.67,157.44,157.36,3.68334846]
[1633108914601,1.17,157.44,157.37,29.47371111]
[1633108914803,1.17,157.44,157.38,7.37081096]
[1633108916602,1.17,157.44,157.38,11.05360675]
[1633108919604,27.18158017,157.44,157.38,11.05360675]
[1633108919805,27.18158017,157.44,157.38,7.37081096]
[1633108920006,27.18158017,157.44,157.34,3.68325888]
[1633108920821,27.18158017,157.44,157.34,31.33274005]
[1633108921022,27.18158017,157.44,157.35,7.3716958]
[1633108921624,1.17,157.44,157.35,11.0549227]
[1633108922524,1.17,157.44,157.36,3.68288688]
[1633108922723,1.17,157.44,157.37,29.62743981]
[1633108922923,1.17,157.44,157.38,7.37058591]
[1633108923324,1.17,157.44,157.38,11.05321142]
[1633108924726,1.17,157.44,157.39,3.68254439]
[1633108925128,1.17,157.44,157.4,3.68223399]
[1633108925529,1.17,157.44,157.42,3.68189768]
[1633108925729,1.17,157.44,157.42,11.05008909]
[1633108926429,1.17,157.44,157.42,7.36819141]
[1633108927028,1.17,157.44,157.41,28.11031143]
[1633108927929,1.17,157.44,157.42,7.36876699]
[1633108928130,1.17,157.44,157.41,28.11031143]
[1633108928330,1.17,157.44,157.42,7.36872836]
[1633108928729,1.17,157.44,157.41,28.11031143]
[1633108930032,1.17,157.44,157.42,7.36868915]
[1633108930235,1.17,157.44,157.42,11.0499393]
[1633108931835,2.67,157.49,157.43,3.68094043]
[1633108932233,0.02088,157.59,157.45,58.0]
[1633108932434,2.67,157.55,157.46,7.36604635]
[1633108932636,2.67,157.54,157.46,11.00850297]
[1633108932834,2.67,157.53,157.47,29.79807813]
[1633108933034,2.67,157.56,157.48,7.36452686]
[1633108933434,2.67,157.56,157.48,10.96045319]
[1633108933633,0.02088,157.65,157.48,10.96045319]
[1633108933634,2.67,157.6,157.48,10.96045319]
[1633108933834,2.67,157.6,157.49,3.5921153]
[1633108934033,2.67,157.6,157.49,10.95550758]
[1633108934240,2.67,157.6,157.5,22.16402006]
[1633108942441,2.67,157.63,157.5,22.16402006]
[1633108942643,2.67,157.63,157.5,64.4876909]
[1633108942841,2.67,157.63,157.51,2.67]
[1633108943241,2.67,157.63,157.52,18.91230975]
[1633108943442,2.67,157.63,157.53,22.19231058]
[1633108943842,2.67,157.63,157.53,41.10462033]
[1633108945841,2.67,157.63,157.57,398.44290298]
[1633108946641,2.67,157.63,157.58,28.55632014]
[1633108946841,25.03004063,157.7,157.58,28.55632014]
[1633108946842,2.67,157.67,157.58,28.55632014]
[1633108951045,27.90066812,157.67,157.58,28.55632014]
[1633108951244,27.90066812,157.67,157.57,398.44290298]
[1633108951645,0.02088,157.66,157.57,398.44290298]
[1633108951845,2.67,157.65,157.57,398.44290298]
[1633108952245,22.2002326,157.64,157.57,398.44290298]
[1633108952445,2.69088,157.63,157.57,398.44290298]
[1633108952643,2.67,157.63,157.57,398.44290298]
[1633108954045,2.67,157.63,157.53,27.49409859]
[1633108954644,2.67,157.63,157.44,6.28998581]
[1633108954845,2.67,157.63,157.45,7.3644193]
[1633108955245,2.67,157.63,157.48,551.75710038]
[1633108955646,2.67,157.63,157.49,25.2860825]
[1633108960253,2.67,157.63,157.5,7.36372809]
[1633108962351,2.67,157.63,157.5,11.04239075]
[1633108963352,2.67,157.63,157.51,3.67856825]
[1633108963553,2.67,157.63,157.52,28.76853864]
[1633108967561,2.67,157.63,157.53,7.36309485]
[1633108969663,2.67,157.63,157.53,11.04116077]
[1633108969863,2.67,157.63,157.55,3.67759873]
[1633108970464,2.67,157.63,157.54,3.67756281]
[1633108970662,2.67,157.63,157.55,32.51445563]
[1633108970863,2.67,157.63,157.56,7.36153247]
[1633108972065,2.67,157.63,157.56,11.02642001]
[1633108973565,2.67,157.63,157.58,336.14384754]
[1633108973970,2.67,157.63,157.59,29.51358307]
[1633108974769,2.67,157.63,157.58,336.14384754]
[1633108975170,2.67,157.63,157.54,3.67728707]
[1633108975569,2.67,157.63,157.53,3.67762214]
[1633108975769,2.67,157.63,157.54,24.86061838]
[1633108975968,2.67,157.63,157.55,7.36224631]
[1633108981170,2.67,157.63,157.55,11.04049326]
[1633108981773,2.67,157.63,157.55,7.36224631]
[1633108982170,2.67,157.63,157.55,11.03833512]
[1633108986172,2.67,157.63,157.56,3.60163435]
[1633108986774,2.67,157.63,157.57,27.92544481]
[1633108988674,2.67,157.63,157.58,7.36097748]
[1633108990276,76.1507,157.7,157.59,43.0]
[1633108990477,2.67,157.69,157.59,43.0]
[1633108990678,2.67,157.69,157.6,10.86371551]
[1633108990878,2.67,157.69,157.61,26.54415516]
[1633108991077,2.67,157.69,157.62,7.35872073]
[1633108991277,2.67,157.69,157.62,27.86572073]
[1633108991477,6.18001346,157.71,157.62,20.507]
[1633108992477,6.18001346,157.71,157.61,30.03244254]
[1633108992876,6.18001346,157.71,157.62,7.35844356]
[1633108993079,6.18001346,157.71,157.62,26.51463812]
[1633108993481,6.18001346,157.71,157.64,3.43468906]
[1633108993677,6.18001346,157.71,157.65,25.48636472]
[1633108999585,2.67,157.76,157.71,6.18001346]
[1633108999786,77.4633,157.8,157.74,2.67]
[1633109000989,2.67,157.8,157.74,2.67]
[1633109003586,2.67,157.8,157.74,82.5038]
[1633109003984,2.67,157.85,157.74,82.5038]
[1633109005984,2.67,157.85,157.74,99.6418]
[1633109006389,2.67,157.85,157.74,19.808]
[1633109006786,31.69414851,157.85,157.74,19.808]
[1633109007587,31.69414851,157.85,157.74,2.67]
[1633109008991,2.67,157.85,157.74,2.67]
[1633109009789,2.67,157.85,157.74,79.3513]
[1633109011390,2.67,157.9,157.75,2.67]
[1633109011594,2.67,157.9,157.76,0.02088]
[1633109011791,2.67,157.9,157.77,2.67]
[1633109011992,2.67,157.9,157.78,0.02088]
[1633109012193,2.67,157.9,157.78,2.69088]
[1633109012394,2.67,157.9,157.79,24.40220833]
[1633109012992,2.67,157.93,157.8,2.67]
[1633109015995,2.67,157.97,157.8,19.57870987]
[1633109016195,2.67,157.97,157.8,83.11870987]
[1633109016393,2.67,157.97,157.8,105.61470987]
[1633109016796,2.67,157.97,157.82,22.26114168]
[1633109016995,2.67,157.97,157.83,2.67]
[1633109017193,2.67,157.97,157.83,19.57870987]
[1633109017393,2.67,157.97,157.84,16.90870987]
[1633109017595,2.67,157.97,157.86,29.26655984]
[1633109018593,21.32570072,157.99,157.87,2.67]
[1633109018794,2.67,158.02,157.87,2.67]
[1633109019794,25.25968229,158.01,157.87,2.67]
[1633109020796,25.25968229,158.01,157.87,79.4473]
[1633109021596,2.67,158.02,157.87,2.67]
[1633109021999,2.67,158.02,157.87,2.64158906]
[1633109022598,29.12597449,158.02,157.87,2.64158906]
[1633109022997,2.67,158.02,157.87,2.64158906]
[1633109023999,27.6752772,158.02,157.87,2.64158906]
[1633109024200,2.67,158.02,157.87,2.64158906]
[1633109028905,1.67,158.02,157.87,2.64158906]
[1633109029702,1.67,158.02,157.87,19.55029893]
[1633109030104,77.9806,158.04,157.87,19.55029893]
[1633109030705,77.9806,158.04,157.87,19.57117893]
[1633109031104,77.9806,158.04,157.87,83.11117893]
[1633109031505,77.9806,158.04,157.89,28.02916349]
[1633109031704,2.67,158.05,157.9,2.67]
[1633109031903,2.67,158.08,157.91,6.74573901]
[1633109032104,2.67,158.08,157.92,2.67]
[1633109032703,2.67,158.08,157.93,26.38283754]
[1633109032905,2.67,158.08,157.94,2.67]
[1633109036811,26.40558612,158.08,157.94,2.67]
[1633109038413,2.67,158.08,157.94,2.67]
[1633109039413,29.9541523,158.07,157.94,2.67]
[1633109039612,46.0751523,158.07,157.94,77.5438]
[1633109039813,2.67,158.06,157.94,2.67]
[1633109040215,2.69088,158.06,157.94,2.67]
[1633109040614,2.67,158.06,157.94,2.67]
[1633109041614,2.67,158.06,157.94,74.8]
[1633109041814,2.67,158.06,157.94,105.52094053]
[1633109042414,2.67,158.06,157.96,21.93560748]
[1633109043013,25.56903544,158.09,157.96,21.93560748]
[1633109043014,25.56903544,158.09,157.96,24.60560748]
[1633109043413,2.67,158.1,157.96,24.60560748]
[1633109043615,79.0374,158.12,157.96,24.60560748]
[1633109043814,79.0374,158.12,157.96,55.32654801]
[1633109044215,79.0374,158.12,157.97,6.75674593]
[1633109044417,79.0374,158.12,157.98,2.67]
[1633109044617,79.0374,158.12,157.99,29.88892218]
[1633109045020,76.3674,158.12,158.0,2.67]
[1633109046434,0.02088,158.14,158.0,2.67]
[1633109047036,2.67,158.18,158.01,0.02088]
[1633109047235,2.67,158.18,158.02,2.67]
[1633109047837,2.67,158.18,158.03,0.02088]
[1633109048039,275.1122,158.2,158.04,2.67]
[1633109048237,196.84,158.2,158.04,2.67]
[1633109048837,196.84,158.2,158.04,2.69088]
[1633109050040,196.84,158.2,158.04,2.67]
[1633109050642,78.4279,158.2,158.04,2.67]
[1633109050838,0.02088,158.23,158.05,30.38149609]
[1633109051038,0.02088,158.28,158.07,66.72]
[1633109051240,2.67,158.3,158.08,76.96008]
[1633109051438,2.67,158.3,158.08,186.29657609]
[1633109051641,2.67,158.3,158.1,66.72]
[1633109051838,2.67,158.3,158.11,2.67]
[1633109052040,2.67,158.3,158.12,23.03766835]
[1633109052238,0.02088,158.31,158.13,66.21]
[1633109052440,72.8351,158.33,158.13,66.21]
[1633109052640,72.8351,158.33,158.14,72.86948]
[1633109052841,72.8351,158.33,158.15,66.21]
[1633109053039,2.67,158.37,158.15,113.49824269]
[1633109053243,26.75692169,158.36,158.16,94.58422216]
[1633109053443,26.75692169,158.36,158.17,2.69088]
[1633109053642,26.75692169,158.36,158.18,0.02088]
[1633109053841,26.75692169,158.36,158.19,2.67]
[1633109054041,26.75692169,158.36,158.2,21.39972229]
[1633109054241,26.75692169,158.36,158.21,2.67]
[1633109054440,26.77780169,158.36,158.21,2.67]
[1633109055640,2.67,158.35,158.21,2.67]
[1633109055844,0.02088,158.34,158.21,2.67]
[1633109056840,2.67,158.35,158.21,2.67]
[1633109057041,26.75692169,158.36,158.21,2.67]
[1633109057443,2.69088,158.37,158.21,2.67]
[1633109057640,2.67,158.37,158.21,2.67]
[1633109057841,2.67,158.37,158.21,32.98649609]
[1633109058442,29.74693807,158.37,158.21,32.98649609]
[1633109058640,0.10808364,158.38,158.22,78.3765]
[1633109058842,0.10808364,158.38,158.23,2.67]
[1633109059041,0.10808364,158.38,158.24,66.74088]
[1633109059247,0.10808364,158.38,158.26,66.72]
[1633109059443,0.10808364,158.38,158.27,2.69088]
[1633109059646,0.10808364,158.38,158.28,26.60631731]
[1633109059843,0.10808364,158.38,158.29,2.69088]
[1633109060044,0.10808364,158.38,158.3,0.02088]
[1633109060243,0.10808364,158.38,158.31,2.67]
[1633109060643,0.10808364,158.38,158.32,22.45743026]
[1633109060844,0.10808364,158.38,158.33,2.69088]
[1633109061048,0.10808364,158.38,158.33,2.67]
[1633109061647,0.10808364,158.38,158.33,31.34626498]
[1633109062045,0.10808364,158.38,158.33,2.69088]
[1633109062246,0.10808364,158.38,158.33,2.67]
[1633109067453,0.10808364,158.38,158.28,2.67]
[1633109067849,2.67,158.37,158.24,492.83820094]
[1633109068049,26.11572724,158.36,158.25,28.1088082]
[1633109068250,0.02088,158.35,158.25,28.1088082]
[1633109068449,0.02088,158.35,158.24,2.67]
[1633109068649,5.09983377,158.35,158.21,2.67]
[1633109068852,0.02088,158.34,158.21,2.67]
[1633109069049,2.67,158.33,158.21,2.67]
[1633109069250,0.02088,158.32,158.18,2.67]
[1633109069448,2.67,158.31,158.19,29.691844]
[1633109071049,2.67,158.31,158.15,2.67]
[1633109071250,2.67,158.31,158.15,340.35388114]
[1633109072050,2.67,158.31,158.16,24.96773494]